[Event "Hungarian Rapid-ch 2022"]
[Site "Ajka"]
[Date "2022.07.16"]
[Round "7.29"]
[White "Szamoskozi, Gabor"]
[Black "Boguszlavszkij, Jevgenyij"]
[Result "1/2-1/2"]
[ECO "C34"]
[WhiteElo "2243"]
[BlackElo "1914"]
[Annotator "ChessBase"]
[PlyCount "95"]
[EventDate "2022.07.15"]
[EventType "swiss"]
[EventCountry "HUN"]
[SourceTitle "playchess.com"]
[Source "ChessBase"]
[SourceQuality "1"]
[TimeControl "900+10"]

1. e4 {[%emt 0:00:13]} e5 {[%emt 0:00:12]} 2. f4 {[%emt 0:00:04]} exf4 {[%emt 0:00:09]} 3. Nf3 {[%emt 0:00:01]} d6 {[%emt 0:00:11]} 4. d4 {[%emt 0:00:10]} Nf6 {[%emt 0:00:06]} 5. Nc3 {[%emt 0:00:05]} Be7 {[%emt 0:00:34]} 6. Bxf4 {[%emt 0:00:11]} O-O {[%emt 0:00:03]} 7. Be2 {[%emt 0:02:29]} b6 {[%emt 0:01:24]} 8. O-O {[%emt 0:00:13]} Bb7 {[%emt 0:00:06]} 9. d5 {[%emt 0:01:45]} Nbd7 {[%emt 0:00:39]} 10. Nd4 {[%emt 0:00:09]} Ne5 {[%emt 0:01:06]} 11. Nf5 {[%emt 0:00:07]} Ng6 {[%emt 0:00:12]} 12. Bg5 {[%emt 0:00:30]} Nxd5 {[%emt 0:00:31]} 13. Nxe7+ {[%emt 0:05:47]} Ndxe7 {[%emt 0:00:03]} 14. Bc4 {[%emt 0:00:18]} h6 {[%emt 0:00:24]} 15. Be3 {[%emt 0:00:11]} Ne5 {[%emt 0:00:07]} 16. Bb3 {[%emt 0:00:08]} Qd7 {[%emt 0:00:15]} 17. h3 {[%emt 0:00:06]} Rad8 {[%emt 0:00:52]} 18. Qh5 {[%emt 0:00:16]} c5 {[%emt 0:00:43]} 19. Bf4 {[%emt 0:01:02]} N7g6 {[%emt 0:00:28]} 20. Bd5 {[%emt 0:03:47]} Bxd5 {[%emt 0:00:30]} 21. exd5 {[%emt 0:00:25]} Nxf4 {[%emt 0:00:11]} 22. Rxf4 {[%emt 0:00:02]} f6 {[%emt 0:00:45]} 23. a4 {[%emt 0:00:10]} Qf7 {[%emt 0:00:03]} 24. Qxf7+ {[%emt 0:00:20]} Rxf7 {[%emt 0:00:11]} 25. a5 {[%emt 0:00:08]} Rb7 {[%emt 0:00:21]} 26. a6 {[%emt 0:00:18]} Re7 {[%emt 0:00:12]} 27. Nb5 {[%emt 0:00:03]} Rdd7 {[%emt 0:00:29]} 28. b3 {[%emt 0:00:02]} Ng6 {[%emt 0:00:40]} 29. Rf2 {[%emt 0:00:07]} Re5 {[%emt 0:00:22]} 30. Rd1 {[%emt 0:00:11]} Ne7 {[%emt 0:00:02]} 31. c4 {[%emt 0:00:16]} Re3 {[%emt 0:00:06]} 32. Rf3 {[%emt 0:00:04]} Rxf3 {[%emt 0:00:19]} 33. gxf3 {[%emt 0:00:00]} Ng6 {[%emt 0:00:19]} 34. Kf2 {[%emt 0:00:11]} Nf4 {[%emt 0:00:05]} 35. Kg3 {[%emt 0:00:10]} g5 {[%emt 0:00:02]} 36. Re1 {[%emt 0:00:09]} Kf7 {[%emt 0:00:01]} 37. Re3 {[%emt 0:00:22]} Nh5+ {[%emt 0:00:33]} 38. Kf2 {[%emt 0:00:23]} Ng7 {[%emt 0:00:03]} 39. Re4 {[%emt 0:00:29]} h5 {[%emt 0:00:36]} 40. Re1 {[%emt 0:00:09]} f5 {[%emt 0:00:34]} 41. f4 {[%emt 0:00:16]} g4 {[%emt 0:00:57]} 42. h4 {[%emt 0:00:01]} Ne8 {[%emt 0:00:43]} 43. Re6 {[%emt 0:00:16]} Nf6 {[%emt 0:00:02]} 44. Kg2 {[%emt 0:00:06]} Ne4 {[%emt 0:00:15]} 45. Rh6 {[%emt 0:00:04]} Kg7 {[%emt 0:00:09]} 46. Re6 {[%emt 0:00:07]} Kf7 {[%emt 0:01:37]} 47. Rh6 {[%emt 0:00:01]} Kg7 {[%emt 0:00:02]} 48. Re6 {[%emt 0:00:02]} 1/2-1/2

[Event "Hungarian Rapid-ch 2022"]
[Site "Ajka"]
[Date "2022.07.16"]
[Round "7.30"]
[White "Seres, Bela"]
[Black "Margl, Roland"]
[Result "0-1"]
[ECO "B12"]
[WhiteElo "2207"]
[BlackElo "2312"]
[Annotator "ChessBase"]
[PlyCount "110"]
[EventDate "2022.07.15"]
[EventType "swiss"]
[EventCountry "HUN"]
[SourceTitle "playchess.com"]
[Source "ChessBase"]
[SourceQuality "1"]
[TimeControl "900+10"]

1. e4 {[%emt 0:00:12]} c6 {[%emt 0:00:13]} 2. d4 {[%emt 0:00:03]} d5 {[%emt 0:00:01]} 3. e5 {[%emt 0:00:01]} Bf5 {[%emt 0:00:02]} 4. Nf3 {[%emt 0:00:01]} e6 {[%emt 0:00:01]} 5. Be2 {[%emt 0:00:02]} c5 {[%emt 0:00:00]} 6. Be3 {[%emt 0:00:02]} Qb6 {[%emt 0:00:01]} 7. Nc3 {[%emt 0:00:04]} Nc6 {[%emt 0:00:01]} 8. O-O {[%emt 0:00:08]} Qxb2 {[%emt 0:00:01]} 9. Qe1 {[%emt 0:00:05]} cxd4 {[%emt 0:00:02]} 10. Bxd4 {[%emt 0:00:02]} Nxd4 {[%emt 0:00:01]} 11. Nxd4 {[%emt 0:00:02]} Bb4 {[%emt 0:00:04]} 12. Rb1 {[%emt 0:00:06]} Bxc3 {[%emt 0:00:32]} 13. Rxb2 {[%emt 0:00:02]} Bxe1 {[%emt 0:00:02]} 14. Rxe1 {[%emt 0:00:00]} b6 {[%emt 0:00:05]} 15. h4 {[%emt 0:00:02]} h5 {[%emt 0:00:44]} 16. Nxf5 {[%emt 0:00:18]} exf5 {[%emt 0:00:01]} 17. c4 {[%emt 0:00:29]} d4 {[%emt 0:06:13]} 18. Rd2 {[%emt 0:00:11]} Rd8 {[%emt 0:02:26]} 19. Red1 {[%emt 0:00:12]} Ne7 {[%emt 0:00:01]} 20. Rxd4 {[%emt 0:00:05]} Rxd4 {[%emt 0:00:01]} 21. Rxd4 {[%emt 0:00:02]} Nc6 {[%emt 0:00:03]} 22. Rd3 {[%emt 0:00:11]} Ke7 {[%emt 0:00:10]} 23. f4 {[%emt 0:00:11]} g6 {[%emt 0:00:04]} 24. Kf2 {[%emt 0:01:42]} Rc8 {[%emt 0:00:13]} 25. Ke3 {[%emt 0:01:03]} Na5 {[%emt 0:01:26]} 26. Rd4 {[%emt 0:00:14]} Rc5 {[%emt 0:00:42]} 27. Kd3 {[%emt 0:00:37]} Nc6 {[%emt 0:00:16]} 28. Rd6 {[%emt 0:01:24]} Nd8 {[%emt 0:02:45]} 29. Rd5 {[%emt 0:01:23]} Ne6 {[%emt 0:00:16]} 30. Rxc5 {[%emt 0:01:16]} Nxf4+ {[%emt 0:01:38]} 31. Ke3 {[%emt 0:00:32]} Nxg2+ {[%emt 0:00:01]} 32. Kf2 {[%emt 0:00:05]} bxc5 {[%emt 0:00:01]} 33. Kxg2 {[%emt 0:00:07]} Ke6 {[%emt 0:00:01]} 34. Bf3 {[%emt 0:00:26]} Kxe5 {[%emt 0:00:01]} 35. Bd5 {[%emt 0:00:00]} f6 {[%emt 0:00:13]} 36. Bf7 {[%emt 0:00:02]} g5 {[%emt 0:00:01]} 37. Bxh5 {[%emt 0:00:05]} Kd4 {[%emt 0:00:10]} 38. Bg6 {[%emt 0:00:18]} gxh4 {[%emt 0:00:11]} 39. Bxf5 {[%emt 0:00:57]} Kxc4 {[%emt 0:00:08]} 40. Kf3 {[%emt 0:00:09]} Kc3 {[%emt 0:00:18]} 41. Ke3 c4 {[%emt 0:00:27]} 42. Be6 {[%emt 0:02:38]} a5 {[%emt 0:00:01]} 43. a4 {[%emt 0:00:18]} Kb4 {[%emt 0:00:39]} 44. Kd2 {[%emt 0:00:09]} Kxa4 {[%emt 0:00:34]} 45. Kc3 {[%emt 0:00:05]} Kb5 {[%emt 0:00:06]} 46. Bxc4+ {[%emt 0:00:12]} Kc5 {[%emt 0:00:01]} 47. Bf1 {[%emt 0:00:58]} Kd5 {[%emt 0:00:04]} 48. Kd3 {[%emt 0:01:21]} a4 {[%emt 0:00:03]} 49. Kc3 {[%emt 0:00:06]} Ke4 {[%emt 0:00:08]} 50. Kb4 {[%emt 0:00:01]} Kf3 {[%emt 0:00:47]} 51. Kxa4 {[%emt 0:00:01]} Kf2 {[%emt 0:00:04]} 52. Bb5 {[%emt 0:00:54]} f5 {[%emt 0:00:12]} 53. Bc6 {[%emt 0:00:05]} f4 {[%emt 0:00:07]} 54. Bh1 {[%emt 0:00:12]} Kg1 {[%emt 0:00:14]} 55. Bd5 {[%emt 0:00:24]} h3 {[%emt 0:00:02]} 0-1

[Event "Hungarian Rapid-ch 2022"]
[Site "Ajka"]
[Date "2022.07.16"]
[Round "8.1"]
[White "Berkes, Ferenc"]
[Black "Gledura, Benjamin"]
[Result "1/2-1/2"]
[ECO "D10"]
[WhiteElo "2649"]
[BlackElo "2637"]
[Annotator "ChessBase"]
[PlyCount "23"]
[EventDate "2022.07.15"]
[EventType "swiss"]
[EventCountry "HUN"]
[SourceTitle "playchess.com"]
[Source "ChessBase"]
[SourceQuality "1"]
[TimeControl "900+10"]

1. d4 {[%emt 0:00:12]} d5 {[%emt 0:00:13]} 2. c4 {[%emt 0:00:02]} c6 {[%emt 0:00:03]} 3. cxd5 {[%emt 0:00:05]} cxd5 {[%emt 0:00:04]} 4. Nc3 {[%emt 0:00:01]} Nf6 {[%emt 0:00:09]} 5. Bf4 {[%emt 0:00:04]} Nc6 {[%emt 0:00:05]} 6. e3 {[%emt 0:00:01]} Bf5 {[%emt 0:00:26]} 7. Nf3 {[%emt 0:00:07]} e6 {[%emt 0:00:05]} 8. Bd3 {[%emt 0:00:04]} Bxd3 {[%emt 0:00:04]} 9. Qxd3 {[%emt 0:00:01]} Bd6 {[%emt 0:00:03]} 10. Bxd6 {[%emt 0:00:05]} Qxd6 {[%emt 0:00:02]} 11. O-O {[%emt 0:00:02]} O-O {[%emt 0:00:03]} 12. Rac1 {[%emt 0:00:02]} 1/2-1/2

[Event "Hungarian Rapid-ch 2022"]
[Site "Ajka"]
[Date "2022.07.16"]
[Round "8.2"]
[White "Hera, Imre Jr."]
[Black "Balog, Imre"]
[Result "1/2-1/2"]
[ECO "A05"]
[WhiteElo "2568"]
[BlackElo "2594"]
[Annotator "ChessBase"]
[PlyCount "89"]
[EventDate "2022.07.15"]
[EventType "swiss"]
[EventCountry "HUN"]
[SourceTitle "playchess.com"]
[Source "ChessBase"]
[SourceQuality "1"]
[TimeControl "900+10"]

1. Nf3 {[%emt 0:00:13]} Nf6 {[%emt 0:00:21]} 2. g3 {[%emt 0:00:07]} g6 {[%emt 0:00:05]} 3. b3 {[%emt 0:00:13]} Bg7 {[%emt 0:00:02]} 4. Bb2 {[%emt 0:00:02]} O-O {[%emt 0:00:03]} 5. Bg2 {[%emt 0:00:01]} d5 {[%emt 0:00:11]} 6. c4 {[%emt 0:00:06]} c6 {[%emt 0:00:02]} 7. O-O {[%emt 0:00:03]} a5 {[%emt 0:00:07]} 8. Na3 {[%emt 0:00:18]} Na6 {[%emt 0:00:12]} 9. d3 {[%emt 0:00:05]} a4 {[%emt 0:00:14]} 10. Nc2 {[%emt 0:00:06]} axb3 {[%emt 0:00:03]} 11. axb3 {[%emt 0:00:02]} Bg4 {[%emt 0:00:18]} 12. Ne5 {[%emt 0:00:21]} Be6 {[%emt 0:01:14]} 13. Nd4 {[%emt 0:00:07]} Qd6 {[%emt 0:00:49]} 14. f4 {[%emt 0:02:59]} Nc7 {[%emt 0:02:27]} 15. Qc2 {[%emt 0:00:45]} Nd7 {[%emt 0:01:06]} 16. Nef3 {[%emt 0:00:45]} Bg4 {[%emt 0:00:12]} 17. h3 {[%emt 0:04:39]} Bxf3 {[%emt 0:00:04]} 18. Nxf3 {[%emt 0:00:02]} Qb4 {[%emt 0:03:01]} 19. Bxg7 {[%emt 0:00:27]} Kxg7 {[%emt 0:00:01]} 20. d4 {[%emt 0:00:29]} Nf6 {[%emt 0:00:28]} 21. Ne5 {[%emt 0:00:11]} Rxa1 {[%emt 0:00:23]} 22. Rxa1 {[%emt 0:00:01]} Ra8 {[%emt 0:00:02]} 23. Rxa8 {[%emt 0:00:13]} Nxa8 {[%emt 0:00:01]} 24. Nd3 {[%emt 0:00:33]} Qa5 {[%emt 0:00:05]} 25. Qb2 {[%emt 0:00:29]} Nc7 {[%emt 0:00:14]} 26. Kf2 {[%emt 0:01:02]} Ne6 {[%emt 0:01:06]} 27. e3 {[%emt 0:00:22]} Nf8 {[%emt 0:02:32]} 28. g4 {[%emt 0:00:07]} h6 {[%emt 0:00:06]} 29. Bf3 {[%emt 0:00:09]} N8d7 {[%emt 0:00:18]} 30. h4 {[%emt 0:00:06]} Ne4+ {[%emt 0:00:21]} 31. Bxe4 {[%emt 0:00:06]} dxe4 {[%emt 0:00:01]} 32. Nc5 {[%emt 0:00:51]} Nxc5 {[%emt 0:00:03]} 33. dxc5+ {[%emt 0:00:01]} Kg8 {[%emt 0:00:13]} 34. b4 {[%emt 0:00:10]} Qd8 {[%emt 0:00:14]} 35. g5 {[%emt 0:02:07]} hxg5 {[%emt 0:00:08]} 36. hxg5 {[%emt 0:00:02]} Qd1 {[%emt 0:00:19]} 37. Qd4 {[%emt 0:00:22]} Qc2+ {[%emt 0:00:25]} 38. Kg3 {[%emt 0:00:14]} Qb1 {[%emt 0:00:03]} 39. b5 {[%emt 0:00:59]} cxb5 {[%emt 0:01:11]} 40. cxb5 {[%emt 0:00:01]} Qxb5 {[%emt 0:01:25]} 41. Qd8+ {[%emt 0:00:01]} Kg7 {[%emt 0:01:03]} 42. Qxe7 {[%emt 0:00:02]} Qb1 {[%emt 0:00:02]} 43. Qe5+ {[%emt 0:00:37]} Kg8 {[%emt 0:00:05]} 44. Qe8+ {[%emt 0:00:06]} Kg7 {[%emt 0:00:02]} 45. Qe5+ {[%emt 0:00:04]} 1/2-1/2

[Event "Hungarian Rapid-ch 2022"]
[Site "Ajka"]
[Date "2022.07.16"]
[Round "8.3"]
[White "Prohaszka, Peter"]
[Black "Czebe, Attila"]
[Result "0-1"]
[ECO "A40"]
[WhiteElo "2570"]
[BlackElo "2385"]
[Annotator "ChessBase"]
[PlyCount "92"]
[EventDate "2022.07.15"]
[EventType "swiss"]
[EventCountry "HUN"]
[SourceTitle "playchess.com"]
[Source "ChessBase"]
[SourceQuality "1"]
[TimeControl "900+10"]

1. d4 {[%emt 0:00:11]} e6 {[%emt 0:00:40]} 2. c4 {[%emt 0:00:41]} b6 {[%emt 0:00:07]} 3. a3 {[%emt 0:00:22]} g6 {[%emt 0:00:02]} 4. Nc3 {[%emt 0:00:06]} Bg7 {[%emt 0:00:01]} 5. Nf3 {[%emt 0:01:09]} Ne7 {[%emt 0:00:04]} 6. g3 {[%emt 0:00:14]} O-O {[%emt 0:00:31]} 7. Bg2 {[%emt 0:00:02]} d5 {[%emt 0:00:09]} 8. Bg5 {[%emt 0:01:15]} c6 {[%emt 0:01:15]} 9. O-O {[%emt 0:02:40]} Ba6 {[%emt 0:01:15]} 10. cxd5 {[%emt 0:00:43]} cxd5 {[%emt 0:00:02]} 11. b4 {[%emt 0:00:46]} Nd7 {[%emt 0:01:01]} 12. Re1 {[%emt 0:00:55]} Rc8 {[%emt 0:02:54]} 13. Rc1 {[%emt 0:00:33]} Qe8 {[%emt 0:00:41]} 14. Bf4 {[%emt 0:03:19]} Nf6 {[%emt 0:00:55]} 15. Ne5 {[%emt 0:00:31]} Nh5 {[%emt 0:00:06]} 16. Bd2 {[%emt 0:00:31]} Nf5 {[%emt 0:01:06]} 17. e3 {[%emt 0:00:07]} Nd6 {[%emt 0:00:04]} 18. e4 {[%emt 0:00:25]} dxe4 {[%emt 0:00:13]} 19. Nxe4 {[%emt 0:00:08]} Nxe4 {[%emt 0:01:14]} 20. Bxe4 {[%emt 0:00:02]} Rxc1 {[%emt 0:00:55]} 21. Qxc1 {[%emt 0:00:39]} Bb5 {[%emt 0:00:01]} 22. Bh6 {[%emt 0:00:29]} Nf6 {[%emt 0:00:05]} 23. Bf3 {[%emt 0:00:18]} Qc8 {[%emt 0:02:14]} 24. Bxg7 {[%emt 0:00:13]} Kxg7 {[%emt 0:00:05]} 25. Qa1 {[%emt 0:00:49]} Nd5 {[%emt 0:01:53]} 26. a4 {[%emt 0:00:02]} Ba6 {[%emt 0:00:01]} 27. Bxd5 {[%emt 0:01:06]} exd5 {[%emt 0:00:01]} 28. b5 {[%emt 0:00:01]} Bb7 {[%emt 0:00:01]} 29. Rc1 {[%emt 0:00:02]} Qd8 {[%emt 0:00:21]} 30. Qc3 {[%emt 0:00:23]} Qg5 {[%emt 0:01:13]} 31. Qc7 {[%emt 0:00:47]} Qd2 {[%emt 0:00:01]} 32. Nf3 {[%emt 0:00:27]} Qb2 {[%emt 0:00:11]} 33. Qe5+ {[%emt 0:00:26]} Kg8 {[%emt 0:00:03]} 34. Rc7 {[%emt 0:00:05]} Bc8 {[%emt 0:00:01]} 35. Kg2 {[%emt 0:00:11]} Bf5 {[%emt 0:00:15]} 36. Qxd5 {[%emt 0:00:07]} Be6 {[%emt 0:00:32]} 37. Qd6 {[%emt 0:00:19]} Qb3 {[%emt 0:00:03]} 38. Qf4 {[%emt 0:00:14]} Qxa4 {[%emt 0:00:12]} 39. Ne5 {[%emt 0:00:10]} Qxb5 {[%emt 0:00:05]} 40. Rxa7 {[%emt 0:00:07]} Bd5+ {[%emt 0:00:12]} 41. Kh3 {[%emt 0:00:10]} Qf1+ {[%emt 0:00:28]} 42. Kh4 {[%emt 0:00:09]} f6 {[%emt 0:00:02]} 43. Qh6 {[%emt 0:00:14]} g5+ {[%emt 0:00:01]} 44. Kg4 {[%emt 0:00:00]} Be6+ {[%emt 0:00:19]} 45. Kf3 {[%emt 0:00:02]} fxe5+ {[%emt 0:00:01]} 46. Ke4 {[%emt 0:00:18]} Qe2# 0-1

[Event "Hungarian Rapid-ch 2022"]
[Site "Ajka"]
[Date "2022.07.16"]
[Round "8.4"]
[White "Csonka, Balazs"]
[Black "Kozak, Adam"]
[Result "1/2-1/2"]
[ECO "B28"]
[WhiteElo "2495"]
[BlackElo "2522"]
[Annotator "ChessBase"]
[PlyCount "98"]
[EventDate "2022.07.15"]
[EventType "swiss"]
[EventCountry "HUN"]
[SourceTitle "playchess.com"]
[Source "ChessBase"]
[SourceQuality "1"]
[TimeControl "900+10"]

1. e4 {[%emt 0:00:12]} c5 {[%emt 0:00:19]} 2. Nf3 {[%emt 0:00:02]} a6 {[%emt 0:00:01]} 3. c3 {[%emt 0:01:34]} d5 {[%emt 0:00:09]} 4. exd5 {[%emt 0:00:02]} Qxd5 {[%emt 0:00:02]} 5. d4 {[%emt 0:00:03]} Nf6 {[%emt 0:00:49]} 6. Be3 {[%emt 0:02:57]} cxd4 {[%emt 0:00:22]} 7. cxd4 {[%emt 0:00:02]} e6 {[%emt 0:00:40]} 8. Nc3 {[%emt 0:00:08]} Qd8 {[%emt 0:00:18]} 9. Bd3 {[%emt 0:00:08]} Be7 {[%emt 0:00:27]} 10. O-O {[%emt 0:00:09]} Nc6 {[%emt 0:01:45]} 11. Rc1 {[%emt 0:00:34]} Nb4 {[%emt 0:02:24]} 12. Bb1 {[%emt 0:00:12]} O-O {[%emt 0:00:04]} 13. Ne5 {[%emt 0:00:33]} Bd7 {[%emt 0:01:27]} 14. Qf3 {[%emt 0:00:53]} Bc6 {[%emt 0:01:23]} 15. Qh3 {[%emt 0:01:06]} g6 {[%emt 0:00:45]} 16. Rfe1 {[%emt 0:01:06]} Re8 {[%emt 0:03:32]} 17. Bg5 {[%emt 0:03:24]} Nbd5 {[%emt 0:02:01]} 18. Rcd1 {[%emt 0:01:07]} Nh5 {[%emt 0:01:12]} 19. Bxe7 {[%emt 0:02:15]} Qxe7 {[%emt 0:00:03]} 20. Ne4 {[%emt 0:00:18]} Ndf4 {[%emt 0:00:31]} 21. Qe3 {[%emt 0:00:52]} Bxe4 {[%emt 0:00:13]} 22. Bxe4 {[%emt 0:00:05]} Rad8 {[%emt 0:00:10]} 23. Qf3 {[%emt 0:00:34]} Nd5 {[%emt 0:00:06]} 24. Ng4 {[%emt 0:00:22]} Qg5 {[%emt 0:00:06]} 25. Bxd5 {[%emt 0:00:24]} Qxd5 {[%emt 0:00:11]} 26. Qxd5 {[%emt 0:00:17]} Rxd5 {[%emt 0:00:01]} 27. Ne3 {[%emt 0:00:05]} Rb5 {[%emt 0:00:07]} 28. b3 {[%emt 0:00:05]} Rd8 {[%emt 0:00:03]} 29. f3 {[%emt 0:00:15]} Rb6 {[%emt 0:00:18]} 30. Rd2 {[%emt 0:00:09]} Nf6 {[%emt 0:00:28]} 31. Red1 {[%emt 0:00:09]} Rc6 {[%emt 0:00:01]} 32. Kf2 {[%emt 0:00:06]} Nd5 {[%emt 0:00:10]} 33. Nxd5 {[%emt 0:00:03]} Rxd5 {[%emt 0:00:00]} 34. Ke3 {[%emt 0:00:09]} Kf8 {[%emt 0:00:02]} 35. Kd3 {[%emt 0:00:22]} Ke7 {[%emt 0:00:08]} 36. Ke3 {[%emt 0:00:14]} Kd6 {[%emt 0:00:09]} 37. Rd3 {[%emt 0:00:10]} Kc7 {[%emt 0:00:02]} 38. Kd2 {[%emt 0:00:10]} Kb6 {[%emt 0:00:02]} 39. Re1 {[%emt 0:00:09]} Rcd6 {[%emt 0:00:04]} 40. Kc3 {[%emt 0:00:06]} Rc6+ {[%emt 0:00:01]} 41. Kd2 {[%emt 0:00:04]} Kb5 {[%emt 0:00:11]} 42. a3 {[%emt 0:00:11]} Kb6 {[%emt 0:00:05]} 43. Re5 {[%emt 0:00:10]} Rcd6 {[%emt 0:00:09]} 44. Rxd5 {[%emt 0:00:03]} Rxd5 {[%emt 0:00:02]} 45. Ke3 {[%emt 0:00:11]} Ra5 {[%emt 0:00:10]} 46. a4 {[%emt 0:00:09]} Rd5 {[%emt 0:00:02]} 47. Rc3 {[%emt 0:00:04]} Rd7 {[%emt 0:00:19]} 48. Rc5 {[%emt 0:00:14]} Ka7 {[%emt 0:00:29]} 49. Ke4 {[%emt 0:00:16]} b6 {[%emt 0:00:17]} 1/2-1/2

[Event "Hungarian Rapid-ch 2022"]
[Site "Ajka"]
[Date "2022.07.16"]
[Round "8.5"]
[White "Aczel, Gergely"]
[Black "Vertetics, Attila"]
[Result "1-0"]
[ECO "E42"]
[WhiteElo "2499"]
[BlackElo "2465"]
[Annotator "ChessBase"]
[PlyCount "71"]
[EventDate "2022.07.15"]
[EventType "swiss"]
[EventCountry "HUN"]
[SourceTitle "playchess.com"]
[Source "ChessBase"]
[SourceQuality "1"]
[TimeControl "900+10"]

1. d4 {[%emt 0:00:11]} Nf6 {[%emt 0:00:11]} 2. c4 {[%emt 0:00:01]} e6 {[%emt 0:00:01]} 3. Nc3 {[%emt 0:00:01]} Bb4 {[%emt 0:00:01]} 4. e3 {[%emt 0:00:01]} c5 {[%emt 0:00:01]} 5. Nge2 {[%emt 0:00:04]} d5 {[%emt 0:00:13]} 6. a3 {[%emt 0:00:02]} Bxc3+ {[%emt 0:00:02]} 7. Nxc3 {[%emt 0:00:01]} cxd4 {[%emt 0:00:02]} 8. exd4 {[%emt 0:00:03]} dxc4 {[%emt 0:00:19]} 9. Bxc4 {[%emt 0:00:01]} Nc6 {[%emt 0:00:11]} 10. Be3 {[%emt 0:00:02]} O-O {[%emt 0:00:10]} 11. O-O {[%emt 0:00:03]} b6 {[%emt 0:00:42]} 12. Qf3 {[%emt 0:00:01]} Bb7 {[%emt 0:00:09]} 13. Bd3 {[%emt 0:00:02]} Qd7 {[%emt 0:02:57]} 14. Qh3 {[%emt 0:00:56]} Ne7 {[%emt 0:00:23]} 15. Rad1 {[%emt 0:02:05]} Ng6 {[%emt 0:00:45]} 16. Qg3 {[%emt 0:03:07]} Nd5 {[%emt 0:00:36]} 17. h4 {[%emt 0:00:32]} f5 {[%emt 0:00:05]} 18. Bc1 {[%emt 0:00:30]} Rac8 {[%emt 0:00:39]} 19. h5 {[%emt 0:00:20]} Nge7 {[%emt 0:00:08]} 20. h6 {[%emt 0:00:06]} Rf7 {[%emt 0:00:15]} 21. Ne2 {[%emt 0:00:33]} Ng6 {[%emt 0:00:09]} 22. hxg7 {[%emt 0:00:35]} f4 {[%emt 0:00:44]} 23. Qh3 {[%emt 0:00:46]} f3 {[%emt 0:01:11]} 24. Bxg6 {[%emt 0:01:01]} Rxg7 {[%emt 0:00:01]} 25. Qxf3 {[%emt 0:01:44]} Rxg6 {[%emt 0:00:02]} 26. Qh3 {[%emt 0:01:25]} Rf8 {[%emt 0:03:02]} 27. f3 {[%emt 0:00:27]} Qb5 {[%emt 0:01:12]} 28. Ng3 {[%emt 0:00:47]} Qb3 {[%emt 0:00:29]} 29. Rde1 {[%emt 0:00:45]} Bc8 {[%emt 0:01:57]} 30. Re5 {[%emt 0:00:28]} Qd3 {[%emt 0:00:18]} 31. Qh4 {[%emt 0:00:23]} Nf4 {[%emt 0:00:47]} 32. Re4 {[%emt 0:00:04]} Nd5 {[%emt 0:00:18]} 33. Rg4 {[%emt 0:00:37]} Ba6 {[%emt 0:01:59]} 34. Re1 {[%emt 0:00:37]} Rff6 {[%emt 0:00:10]} 35. Ne4 {[%emt 0:00:59]} Qxd4+ {[%emt 0:00:36]} 36. Be3 {[%emt 0:00:17]} 1-0

[Event "Hungarian Rapid-ch 2022"]
[Site "Ajka"]
[Date "2022.07.16"]
[Round "8.6"]
[White "Antal, Gergely"]
[Black "Jakab, Attila"]
[Result "0-1"]
[ECO "B27"]
[WhiteElo "2571"]
[BlackElo "2311"]
[Annotator "ChessBase"]
[PlyCount "90"]
[EventDate "2022.07.15"]
[EventType "swiss"]
[EventCountry "HUN"]
[SourceTitle "playchess.com"]
[Source "ChessBase"]
[SourceQuality "1"]
[TimeControl "900+10"]

1. e4 {[%emt 0:00:13]} c5 {[%emt 0:00:11]} 2. Nf3 {[%emt 0:00:01]} g6 {[%emt 0:00:02]} 3. d4 {[%emt 0:00:11]} Bg7 {[%emt 0:00:02]} 4. dxc5 {[%emt 0:01:00]} Qa5+ {[%emt 0:00:01]} 5. c3 {[%emt 0:00:31]} Qxc5 {[%emt 0:00:02]} 6. Be3 {[%emt 0:00:02]} Qa5 {[%emt 0:00:01]} 7. Nbd2 {[%emt 0:00:58]} Nc6 {[%emt 0:00:01]} 8. h3 {[%emt 0:02:15]} Nf6 {[%emt 0:00:10]} 9. Nc4 {[%emt 0:00:13]} Qc7 {[%emt 0:00:16]} 10. e5 {[%emt 0:01:40]} Ne4 {[%emt 0:00:02]} 11. Bd3 {[%emt 0:00:15]} d5 {[%emt 0:01:04]} 12. exd6 {[%emt 0:00:22]} Nxd6 {[%emt 0:00:01]} 13. Bf4 {[%emt 0:00:56]} O-O {[%emt 0:00:24]} 14. Nxd6 {[%emt 0:00:01]} exd6 {[%emt 0:00:01]} 15. O-O {[%emt 0:00:01]} Ne5 {[%emt 0:01:03]} 16. Be4 {[%emt 0:00:02]} Bd7 {[%emt 0:00:22]} 17. Re1 {[%emt 0:00:16]} Bc6 {[%emt 0:00:02]} 18. Bxc6 {[%emt 0:00:15]} bxc6 {[%emt 0:00:05]} 19. Bxe5 dxe5 {[%emt 0:00:16]} 20. Qe2 {[%emt 0:00:24]} Rae8 {[%emt 0:00:21]} 21. Nd2 {[%emt 0:00:30]} f5 {[%emt 0:00:08]} 22. Qc4+ {[%emt 0:00:04]} Kh8 {[%emt 0:00:01]} 23. Nb3 {[%emt 0:00:04]} e4 {[%emt 0:00:27]} 24. Nc5 {[%emt 0:00:08]} e3 {[%emt 0:00:56]} 25. Rxe3 {[%emt 0:00:16]} Rxe3 {[%emt 0:00:02]} 26. fxe3 {[%emt 0:00:01]} Re8 {[%emt 0:00:16]} 27. Rd1 {[%emt 0:00:42]} Qe5 {[%emt 0:00:35]} 28. Rd3 {[%emt 0:01:18]} Bh6 {[%emt 0:00:43]} 29. Nd7 {[%emt 0:03:26]} Bxe3+ {[%emt 0:00:12]} 30. Kh1 {[%emt 0:00:01]} Qg3 {[%emt 0:01:00]} 31. Rd1 {[%emt 0:00:22]} Bf4 {[%emt 0:00:13]} 32. Qd4+ {[%emt 0:00:03]} Kg8 {[%emt 0:00:01]} 33. Qg1 {[%emt 0:00:28]} Kg7 {[%emt 0:00:29]} 34. Nc5 {[%emt 0:00:21]} Re3 {[%emt 0:01:22]} 35. b4 {[%emt 0:01:15]} g5 {[%emt 0:00:02]} 36. Nb3 {[%emt 0:00:19]} g4 {[%emt 0:00:31]} 37. Nd4 {[%emt 0:00:17]} Kf6 {[%emt 0:00:02]} 38. Nc2 {[%emt 0:00:25]} Rxc3 {[%emt 0:01:06]} 39. Rd8 {[%emt 0:00:57]} Rxc2 {[%emt 0:02:13]} 40. Qd4+ {[%emt 0:00:35]} Be5 {[%emt 0:00:02]} 41. Rf8+ {[%emt 0:00:26]} Kg7 {[%emt 0:00:10]} 42. Qd7+ {[%emt 0:00:15]} Kxf8 {[%emt 0:00:01]} 43. Qxf5+ {[%emt 0:00:03]} Ke7 {[%emt 0:00:08]} 44. Qxh7+ {[%emt 0:00:06]} Kd6 {[%emt 0:00:05]} 45. Qg6+ {[%emt 0:00:07]} Kc7 {[%emt 0:00:05]} 0-1